[Event "Romanian Championship 2024"]
[Site "Eforie Nord"]
[Date "2024.03.02"]
[Round "9.17"]
[White "Serban, Cristian-Stefan"]
[Black "Dodoi, Matei-Teodor"]
[Result "1/2-1/2"]
[ECO "A16"]
[WhiteElo "2309"]
[BlackElo "1947"]
[Annotator "TA"]
[PlyCount "90"]
[EventDate "2024.02.24"]
[EventType "swiss"]
[EventCountry "ROU"]
[SourceTitle "playchess.com"]
[Source "ChessBase"]
[SourceQuality "1"]
[TimeControl "40/5400+30:900+30"]

{[%evp 9,90,26,42,35,53,27,22,11,20,-3,4,-111,-113,-118,-119,-76,0,0,3,0,39,18,26,18,42,45,49,0,57,47,42,42,130,0,0,0,0,-16,-9,-5,0,-10,0,0,0,0,0,0,0,0,0,0,9,0,0,0,0,0,0,0,0,0,0,0,0,0,0,0,0,-23,0,0,0,0,0,0,0,0,0,0,0,0,0]} 1. c4 {[%emt 0:09:14]} Nf6 {[%emt 0:00:14]} 2. Nc3 {[%emt 0:00:07]} d5 {[%emt 0:00:24]} 3. cxd5 {[%emt 0:00:06]} Nxd5 {[%emt 0:00:07]} 4. Nf3 {[%emt 0:00:04]} Nxc3 {[%emt 0:01:25]} 5. bxc3 {[%emt 0:00:06]} g6 {[%emt 0:00:06]} 6. h4 {[%emt 0:00:18]} h6 {[%emt 0:06:54]} 7. Qa4+ {[%emt 0:10:19]} Nd7 {[%emt 0:05:21]} 8. e4 {[%emt 0:11:13]} Bg7 {[%emt 0:06:32]} 9. e5 {[%emt 0:00:16][%cal Oe5e6]} O-O {[%emt 0:02:02] [#]} 10. e6 {[%emt 0:10:32]} Nb6 $1 $17 {[%emt 0:04:51]} (10... fxe6 $6 11. Qc2 $14) ({Doch nicht} 10... Nc5 $6 11. exf7+ Rxf7 12. Qb5 $11) 11. exf7+ {[%emt 0:00:25]} Rxf7 {[%emt 0:00:11]} 12. Qb3 {[%emt 0:03:11] [#]} a5 {[%emt 0:02:51]} (12... e5 $1 $17 {[%cal Re5e4] Zielt auf ...e4 ab.} 13. Be2 Qf6) 13. d4 $11 {[%emt 0:02:52]} a4 $132 {[%emt 0:02:32][%mdl 2048] Schwarz hält nicht still} 14. Qc2 {[%emt 0:00:09]} Bf5 {[%emt 0:00:49]} 15. Bd3 {[%emt 0:00:23]} Qd5 {[%emt 0:11:21]} 16. O-O {[%emt 0:09:11]} Raf8 {[%emt 0:11:38]} 17. Re1 {[%emt 0:02:02]} Bxd3 {[%emt 0:08:29]} 18. Qxd3 {[%emt 0:00:15]} Qf5 {[%emt 0:00:06]} (18... Qh5 $1 $11) 19. Qxf5 $14 {[%emt 0:00:31]} Rxf5 {[%emt 0:01:30]} 20. Rb1 {[%emt 0:01:34]} Re8 {[%emt 0:02:57] [#]} (20... Rb8 $14) 21. Ba3 {[%emt 0:03:33]} ({Günstiger ist} 21. c4 $1 $16) 21... Kf7 $1 $11 {[%emt 0:02:51]} 22. Nd2 {[%emt 0:03:33]} e5 {[%emt 0:04:35]} 23. Bc5 {[%emt 0:00:17] Schwarz muss nun Ne4 beachten.} exd4 {[%emt 0:04:32]} 24. Rxe8 {[%emt 0:02:08]} Kxe8 {[%emt 0:04:11]} 25. Bxd4 {[%emt 0:06:36]} Bxd4 {[%emt 0:02:01]} 26. cxd4 {[%emt 0:00:09][%mdl 4096] Endspiel. KRN-KRN} Rf4 {[%emt 0:04:28]} 27. Nf3 {[%emt 0:00:16]} Kd8 {[%emt 0:01:13]} 28. Kf1 {[%emt 0:01:13]} Kc8 {[%emt 0:00:59]} 29. Rb4 {[%emt 0:00:04]} Re4 {[%emt 0:01:31]} 30. g3 {[%emt 0:01:45]} a3 {[%emt 0:02:31]} 31. Nd2 {[%emt 0:01:13]} Re6 {[%emt 0:00:36]} 32. Rb3 {[%emt 0:04:58]} Rd6 {[%emt 0:00:43]} 33. Nf3 {[%emt 0:00:05]} Nc4 {[%emt 0:00:42]} 34. Ke2 {[%emt 0:00:16]} c6 {[%emt 0:03:39]} 35. Rc3 {[%emt 0:02:37]} b5 {[%emt 0:00:15]} 36. Ne5 {[%emt 0:00:05]} Rxd4 {[%emt 0:02:31]} 37. Nxc4 {[%emt 0:00:04]} bxc4 {[%emt 0:00:36]} (37... Rxc4 38. Rxc4 bxc4 39. Kd2 $18) 38. Rxa3 {[%emt 0:04:13] KR-KR} Kb7 {[%emt 0:00:15]} 39. f3 {[%emt 0:03:01]} g5 {[%emt 0:00:40]} 40. hxg5 {[%emt 0:00:00] Die Stellung ist ausgeglichen.} hxg5 {[%emt 0:00:00]} 41. Re3 {[%emt 0:06:37]} g4 {[%emt 0:03:04]} 42. f4 {[%emt 0:03:45]} Kb6 {[%emt 0:00:50]} 43. f5 {[%emt 0:00:21]} Rd5 {[%emt 0:01:09]} 44. Re4 {[%emt 0:02:22]} Rxf5 {[%emt 0:01:06]} 45. Rxc4 {[%emt 0:00:08]} Rf3 {[%emt 0:00:52] Gewichteter Fehlerwert: Weiß=0.11 (sehr präzise) /Schwarz=0.12 (sehr präzise) .  Fehler:       	Weiß=2     	Schwarz=3     Ungenau:       	Weiß=2     	Schwarz=1     OK:         	Weiß=17    	Schwarz=17    Bester:       	Weiß=3     	Schwarz=3     Stark:        	---       	Schwarz=2} 1/2-1/2

[Event "Romanian Championship 2024"]
[Site "Eforie Nord"]
[Date "2024.03.02"]
[Round "9.18"]
[White "Voiteanu, Gabriel"]
[Black "Melinte, Rares-Andrei"]
[Result "1/2-1/2"]
[ECO "E73"]
[WhiteElo "2151"]
[BlackElo "1989"]
[Annotator "RC"]
[PlyCount "90"]
[EventDate "2024.02.24"]
[EventType "swiss"]
[EventCountry "ROU"]
[SourceTitle "playchess.com"]
[Source "ChessBase"]
[SourceQuality "1"]
[TimeControl "40/5400+30:900+30"]

1. d4 {[%emt 0:00:03]} Nf6 {[%emt 0:00:04]} 2. c4 {[%emt 0:00:06]} g6 {[%emt 0:00:06]} 3. Nc3 {[%emt 0:00:13]} Bg7 {[%emt 0:00:13]} 4. e4 {[%emt 0:00:06]} d6 {[%emt 0:00:12]} 5. Be2 {[%emt 0:00:08]} O-O {[%emt 0:00:10]} 6. Be3 {[%emt 0:00:08]} e5 {[%emt 0:00:31]} 7. d5 {[%emt 0:00:26]} Na6 {[%emt 0:00:33]} 8. g4 {[%emt 0:00:19]} Nc5 {[%emt 0:00:31]} 9. f3 {[%emt 0:00:24]} h5 {[%emt 0:00:23]} 10. b4 {[%emt 0:00:35]} Na6 {[%emt 0:00:20]} 11. a3 {[%emt 0:00:07]} hxg4 {[%emt 0:00:19]} 12. Bg5 {[%emt 0:00:14]} c6 {[%emt 0:00:37]} 13. fxg4 {[%emt 0:06:08]} cxd5 {[%emt 0:00:42]} 14. cxd5 {[%emt 0:00:16]} Bd7 {[%emt 0:00:19]} 15. Nh3 {[%emt 0:04:58]} Qb6 {[%emt 0:04:43]} 16. Nf2 {[%emt 0:04:49]} Rac8 {[%emt 0:03:14]} 17. Rc1 {[%emt 0:04:55]} Qd4 {[%emt 0:04:43]} 18. Qd2 {[%emt 0:09:01]} Nc7 {[%emt 0:18:03]} 19. Be3 {[%emt 0:21:06]} Qxd2+ {[%emt 0:00:26]} 20. Kxd2 {[%emt 0:00:07]} a6 {[%emt 0:01:45]} 21. h4 {[%emt 0:01:06]} Nb5 {[%emt 0:12:53]} 22. Nxb5 {[%emt 0:03:34]} Bxb5 {[%emt 0:04:34]} 23. Bxb5 {[%emt 0:03:56]} axb5 {[%emt 0:00:04]} 24. Bb6 {[%emt 0:09:21]} Ra8 {[%emt 0:03:12]} 25. Rc3 {[%emt 0:05:09]} Ra6 {[%emt 0:01:57]} 26. Be3 {[%emt 0:00:37]} Rfa8 {[%emt 0:05:07]} 27. Ra1 {[%emt 0:00:26]} Ne8 {[%emt 0:17:16]} 28. g5 {[%emt 0:04:19]} Kf8 {[%emt 0:04:48]} 29. Ng4 {[%emt 0:03:09]} Ra4 {[%emt 0:05:12]} 30. Kc2 {[%emt 0:07:51]} Rxb4 {[%emt 0:04:25]} 31. axb4 {[%emt 0:00:08]} Rxa1 {[%emt 0:00:12]} 32. Rc8 {[%emt 0:00:10]} Rh1 {[%emt 0:00:39]} 33. Bf2 {[%emt 0:08:11]} Ke7 {[%emt 0:05:27]} 34. Rb8 {[%emt 0:00:06]} f5 {[%emt 0:01:07]} 35. gxf6+ {[%emt 0:02:01]} Nxf6 {[%emt 0:01:04]} 36. Rxb7+ {[%emt 0:01:05]} Kf8 {[%emt 0:01:03]} 37. Nxf6 {[%emt 0:02:35]} Bxf6 {[%emt 0:00:03]} 38. Ba7 {[%emt 0:00:27]} Rxh4 {[%emt 0:00:31]} 39. Kd3 {[%emt 0:00:12]} Rh3+ {[%emt 0:00:16]} 40. Ke2 {[%emt 0:00:00]} Rh4 {[%emt 0:00:00]} 41. Kf3 {[%emt 0:00:29]} Rh3+ {[%emt 0:00:58]} 42. Kg2 {[%emt 0:00:26]} Rh4 {[%emt 0:00:29]} 43. Bb8 {[%emt 0:01:51]} Be7 {[%emt 0:01:01]} 44. Kf3 {[%emt 0:01:01]} Rh3+ {[%emt 0:00:24]} 45. Ke2 {[%emt 0:00:15]} Rh4 {[%emt 0:00:10]} 1/2-1/2

[Event "Romanian Championship 2024"]
[Site "Eforie Nord"]
[Date "2024.03.02"]
[Round "9.19"]
[White "Botea, David-Alexandru"]
[Black "Armenciu, Bogdan-Ovidiu"]
[Result "1-0"]
[ECO "B08"]
[WhiteElo "2081"]
[BlackElo "1936"]
[Annotator "NA RC"]
[PlyCount "81"]
[EventDate "2024.02.24"]
[EventType "swiss"]
[EventCountry "ROU"]
[SourceTitle "playchess.com"]
[Source "ChessBase"]
[SourceQuality "1"]
[TimeControl "40/5400+30:900+30"]

1. e4 {[%emt 0:00:03]} d6 {[%emt 0:00:24]} 2. d4 {[%emt 0:00:04]} Nf6 {[%emt 0:00:03]} 3. Nc3 {[%emt 0:00:03]} g6 {[%emt 0:00:04]} 4. Nf3 {[%emt 0:00:03]} Bg7 {[%emt 0:01:14]} 5. Be2 {[%emt 0:00:13]} c6 {[%emt 0:01:00]} 6. a4 {[%emt 0:00:30]} O-O {[%emt 0:00:16]} 7. O-O {[%emt 0:00:04]} Nbd7 {[%emt 0:01:43]} 8. h3 {[%emt 0:00:17]} e5 {[%emt 0:01:22]} 9. dxe5 {[%emt 0:00:07]} dxe5 {[%emt 0:00:37]} 10. Bc4 {[%emt 0:02:45]} Qe7 {[%emt 0:07:37]} 11. Qd3 {[%emt 0:04:02]} Nc5 {[%emt 0:09:10]} 12. Qe3 {[%emt 0:00:09]} a5 {[%emt 0:00:04]} 13. b3 {[%emt 0:03:23]} Nh5 {[%emt 0:11:46]} 14. Ba3 {[%emt 0:01:32]} b6 {[%emt 0:00:23] [#]} 15. b4 $1 {[%emt 0:07:20]} axb4 {[%emt 0:06:05]} 16. Bxb4 {[%emt 0:00:45]} Nf4 $2 {[%emt 0:00:34]} (16... Be6 $16) 17. a5 {[%emt 0:05:37]} Bh6 $18 {[%emt 0:01:20]} 18. Kh1 {[%emt 0:07:23]} Kg7 {[%emt 0:18:45]} 19. axb6 {[%emt 0:03:15]} Rxa1 {[%emt 0:01:27]} 20. Rxa1 {[%emt 0:22:27]} Nfd3 {[%emt 0:01:52]} 21. Bxc5 {[%emt 0:08:36]} Nxc5 {[%emt 0:00:07]} 22. Qe2 {[%emt 0:01:07]} Rd8 {[%emt 0:07:33]} 23. Ra7 {[%emt 0:06:21]} Rd7 {[%emt 0:05:05]} 24. Rxd7 {[%emt 0:03:49]} Nxd7 {[%emt 0:01:31]} 25. Na4 {[%emt 0:01:03]} Qa3 {[%emt 0:17:08]} 26. Bb3 {[%emt 0:01:42]} Nb8 {[%emt 0:00:18]} 27. Qd1 {[%emt 0:08:06]} Qe7 {[%emt 0:00:58]} 28. Qd3 {[%emt 0:05:42]} Bc1 {[%emt 0:00:41]} 29. Qc3 {[%emt 0:00:44]} Kf6 {[%emt 0:01:10]} 30. Nc5 {[%emt 0:02:50]} Ba3 {[%emt 0:01:12]} 31. b7 {[%emt 0:01:10]} Bf5 {[%emt 0:03:09]} 32. Nd3 {[%emt 0:00:46]} Bxe4 {[%emt 0:00:34]} 33. Ndxe5 {[%emt 0:01:57]} Kg7 {[%emt 0:01:01]} 34. Nxc6+ {[%emt 0:00:45]} Qf6 {[%emt 0:00:05]} 35. Qxf6+ {[%emt 0:00:07]} Kxf6 {[%emt 0:00:01]} 36. Nxb8 {[%emt 0:00:06]} Bxb7 {[%emt 0:00:17]} 37. Nd7+ {[%emt 0:00:28]} Ke7 {[%emt 0:00:13]} 38. Nde5 {[%emt 0:00:49]} f6 {[%emt 0:00:14]} 39. Nd3 {[%emt 0:00:17]} Be4 {[%emt 0:01:25]} 40. Nd2 {[%emt 0:00:00]} Bb7 {[%emt 0:00:00]} 41. Nc4 {[%emt 0:01:05]} 1-0

[Event "Romanian Championship 2024"]
[Site "Eforie Nord"]
[Date "2024.03.02"]
[Round "9.20"]
[White "Lucaci, Alin-Marian"]
[Black "Ciocani, Iosif"]
[Result "0-1"]
[ECO "E24"]
[WhiteElo "1749"]
[BlackElo "2063"]
[Annotator "RC"]
[PlyCount "46"]
[EventDate "2024.02.24"]
[EventType "swiss"]
[EventCountry "ROU"]
[SourceTitle "playchess.com"]
[Source "ChessBase"]
[SourceQuality "1"]
[TimeControl "40/5400+30:900+30"]

1. d4 {[%emt 0:00:03]} Nf6 {[%emt 0:04:32]} 2. c4 {[%emt 0:00:06]} e6 {[%emt 0:00:04]} 3. Nc3 {[%emt 0:00:04]} Bb4 {[%emt 0:00:06]} 4. a3 {[%emt 0:00:03]} Bxc3+ {[%emt 0:00:16]} 5. bxc3 {[%emt 0:00:04]} b6 {[%emt 0:00:05]} 6. e4 {[%emt 0:00:19]} Nxe4 {[%emt 0:00:32]} 7. Qg4 {[%emt 0:00:07]} f5 {[%emt 0:00:13]} 8. Qxg7 {[%emt 0:00:06]} Qf6 {[%emt 0:00:04]} 9. Qxf6 {[%emt 0:00:08]} Nxf6 {[%emt 0:00:05]} 10. Nf3 {[%emt 0:04:45]} Nc6 {[%emt 0:03:52]} 11. d5 {[%emt 0:08:43]} exd5 {[%emt 0:02:23]} 12. Bd3 {[%emt 0:06:53]} Ba6 {[%emt 0:09:05]} 13. Bxf5 {[%emt 0:03:06]} Bxc4 {[%emt 0:00:41]} 14. Be3 {[%emt 0:27:50]} Ne4 {[%emt 0:03:22]} 15. Ng5 {[%emt 0:02:54]} Nxc3 {[%emt 0:02:59]} 16. Bxh7 {[%emt 0:05:13]} d4 {[%emt 0:07:21]} 17. Bf4 {[%emt 0:05:27]} O-O-O {[%emt 0:01:50]} 18. Kd2 {[%emt 0:01:49]} Na5 {[%emt 0:05:47]} 19. Rae1 {[%emt 0:04:13]} Nb3+ {[%emt 0:01:00]} 20. Kc2 {[%emt 0:00:17]} Nc5 {[%emt 0:00:06]} 21. Bf5 {[%emt 0:02:33]} Rhf8 {[%emt 0:13:03]} 22. g4 {[%emt 0:00:22]} Be6 {[%emt 0:02:32]} 23. Bxe6 {[%emt 0:04:59]} Rxf4 {[%emt 0:00:23]} 0-1

[Event "Romanian Championship 2024"]
[Site "Eforie Nord"]
[Date "2024.03.02"]
[Round "9.21"]
[White "Danila, Tudor-Gabriel"]
[Black "Andronescu, Madalin"]
[Result "1-0"]
[ECO "B22"]
[WhiteElo "1901"]
[BlackElo "2007"]
[Annotator "NA RC"]
[PlyCount "51"]
[EventDate "2024.02.24"]
[EventType "swiss"]
[EventCountry "ROU"]
[SourceTitle "playchess.com"]
[Source "ChessBase"]
[SourceQuality "1"]
[TimeControl "40/5400+30:900+30"]

1. e4 {[%emt 0:00:03]} c5 {[%emt 0:00:27]} 2. c3 {[%emt 0:00:06]} Nf6 {[%emt 0:00:04]} 3. e5 {[%emt 0:00:03]} Nd5 {[%emt 0:00:04]} 4. d4 {[%emt 0:00:02]} cxd4 {[%emt 0:00:07]} 5. Nf3 {[%emt 0:00:03]} Nc6 {[%emt 0:00:10]} 6. cxd4 {[%emt 0:00:05]} e6 {[%emt 0:00:04]} 7. Bc4 {[%emt 0:00:03]} d6 {[%emt 0:00:11]} 8. O-O {[%emt 0:00:05]} Be7 {[%emt 0:00:03]} 9. Qe2 {[%emt 0:00:04]} O-O {[%emt 0:00:07]} 10. Nc3 {[%emt 0:00:01]} Nxc3 {[%emt 0:00:07]} 11. bxc3 {[%emt 0:00:03]} dxe5 {[%emt 0:00:09]} 12. dxe5 {[%emt 0:00:03]} b6 {[%emt 0:00:17]} 13. Re1 {[%emt 0:07:47]} Bb7 {[%emt 0:00:45]} 14. Bd2 {[%emt 0:11:15]} Na5 {[%emt 0:09:57]} 15. Bd3 {[%emt 0:00:07]} Rc8 {[%emt 0:01:59]} 16. Rad1 {[%emt 0:00:44]} Qd5 {[%emt 0:02:35]} 17. Bg5 {[%emt 0:11:39]} Qc5 {[%emt 0:02:52]} 18. h4 {[%emt 0:00:36]} h6 $16 {[%emt 0:09:31]} (18... Bxf3 $15 {keeps the upper hand.} 19. Qxf3 Bxg5 20. hxg5 g6 (20... Qxc3 $2 {is the wrong capture.} 21. Re3 $18)) 19. Be3 {[%emt 0:10:55]} Qxc3 {[%emt 0:03:10]} 20. Nd4 {[%emt 0:00:40]} Nc6 {[%emt 0:05:51]} 21. Qh5 {[%emt 0:07:15]} Nxd4 {[%emt 0:04:21]} 22. Bxd4 {[%emt 0:00:39]} Qc6 {[%emt 0:00:26]} 23. Re4 {[%emt 0:02:34]} Rfd8 {[%emt 0:01:03]} 24. Rg4 {[%emt 0:06:48]} Kf8 {[%emt 0:01:11]} 25. Be3 {[%emt 0:00:39]} Rd5 {[%emt 0:12:09]} 26. Rxg7 {[%emt 0:00:26]} 1-0

[Event "Romanian Championship 2024"]
[Site "Eforie Nord"]
[Date "2024.03.02"]
[Round "9.22"]
[White "Buzbuchi, Ionut"]
[Black "Samu, Sorin-Mihai"]
[Result "1-0"]
[ECO "B00"]
[WhiteElo "2039"]
[BlackElo "2004"]
[Annotator "NA RC"]
[PlyCount "108"]
[EventDate "2024.02.24"]
[EventType "swiss"]
[EventCountry "ROU"]
[SourceTitle "playchess.com"]
[Source "ChessBase"]
[SourceQuality "1"]
[TimeControl "40/5400+30:900+30"]

1. Nf3 {[%emt 0:00:05]} b6 {[%emt 0:00:14]} 2. e4 {[%emt 0:00:39]} Bb7 {[%emt 0:00:07]} 3. Nc3 {[%emt 0:00:04]} g6 {[%emt 0:00:16]} 4. d4 {[%emt 0:00:14]} Bg7 {[%emt 0:00:16]} 5. Be3 {[%emt 0:11:20]} Nf6 {[%emt 0:02:12]} 6. e5 {[%emt 0:05:48] B00: Queen's Fianchetto Defence, Nimzowitsch Defence.} Nd5 {[%emt 0:00:42]} 7. Nxd5 {[%emt 0:00:28]} Bxd5 {[%emt 0:00:08]} 8. c4 {[%emt 0:02:15]} Bb7 {[%emt 0:00:19]} 9. Be2 {[%emt 0:00:23]} O-O {[%emt 0:00:22]} 10. O-O {[%emt 0:00:42]} d6 {[%emt 0:00:25]} 11. Qb3 {[%emt 0:03:35]} Nd7 {[%emt 0:00:45]} 12. Rad1 {[%emt 0:05:48]} e6 {[%emt 0:00:38]} 13. Bg5 {[%emt 0:04:05]} Qe8 {[%emt 0:00:38]} 14. exd6 {[%emt 0:00:30]} cxd6 {[%emt 0:00:08]} 15. Qa3 {[%emt 0:02:52]} h6 {[%emt 0:00:43]} 16. Bh4 {[%emt 0:00:03]} f5 {[%emt 0:02:06]} 17. Qxd6 {[%emt 1:00:09]} g5 {[%emt 0:00:02]} 18. Bxg5 {[%emt 0:00:00]} hxg5 {[%emt 0:01:06]} 19. Nxg5 {[%emt 0:00:00]} Rf6 {[%emt 0:00:29]} 20. c5 {[%emt 0:00:00]} Rc8 {[%emt 0:03:10]} 21. Bb5 {[%emt 0:00:00]} Rd8 $18 {[%emt 0:08:24]} 22. c6 {[%emt 0:00:00]} Bxc6 {[%emt 0:10:06]} 23. Bxc6 {[%emt 0:00:00]} Nf8 {[%emt 0:02:11]} 24. Qc7 {[%emt 0:00:00]} Rc8 {[%emt 0:00:06]} 25. Qxg7+ {[%emt 0:00:00]} Kxg7 {[%emt 0:00:39]} 26. Bxe8 {[%emt 0:00:00]} Rxe8 {[%emt 0:00:25]} 27. Rfe1 {[%emt 0:00:00]} Rg6 {[%emt 0:00:28]} 28. f4 {[%emt 0:00:00]} Rd8 {[%emt 0:00:40]} 29. Kf2 {[%emt 0:00:00]} Kf6 {[%emt 0:00:24]} 30. Re5 {[%emt 0:00:00]} Rg7 {[%emt 0:00:24]} 31. d5 {[%emt 0:00:00]} Rxg5 {[%emt 0:00:15]} 32. dxe6 {[%emt 0:00:00]} Re8 {[%emt 0:02:03]} 33. e7 {[%emt 0:00:00]} Ng6 {[%emt 0:00:02]} 34. Rd6+ {[%emt 0:00:00]} Kf7 {[%emt 0:00:01]} 35. fxg5 {[%emt 0:00:00]} Nxe5 {[%emt 0:00:33]} 36. Rf6+ {[%emt 0:00:00]} Kxe7 {[%emt 0:01:10]} 37. Rxf5 {[%emt 0:00:00]} Nd3+ {[%emt 0:00:52]} 38. Kg3 {[%emt 0:00:00]} Nxb2 {[%emt 0:01:10]} 39. h4 {[%emt 0:00:00]} Nc4 {[%emt 0:00:40]} 40. g6 {[%emt 0:00:00]} Nd6 {[%emt 0:00:00]} 41. Rf4 {[%emt 0:00:00]} Rf8 {[%emt 0:00:36]} 42. h5 {[%emt 0:00:00]} Nf5+ {[%emt 0:01:07]} 43. Kf2 {[%emt 0:00:00]} a5 {[%emt 0:03:41]} 44. g4 {[%emt 0:00:00]} Nd4 {[%emt 0:01:35]} 45. Ke3 {[%emt 0:00:20]} Nc2+ {[%emt 0:00:25]} 46. Ke4 {[%emt 0:00:05]} b5 {[%emt 0:02:07]} 47. Rf5 {[%emt 0:03:11]} Na3 {[%emt 0:04:38]} 48. g7 {[%emt 0:02:01]} Rg8 {[%emt 0:01:46]} 49. h6 {[%emt 0:00:16]} Nc4 {[%emt 0:00:06]} 50. h7 {[%emt 0:00:56]} Nd6+ {[%emt 0:00:56]} 51. Kf4 {[%emt 0:00:11]} Rxg7 {[%emt 0:00:52]} 52. h8=Q {[%emt 0:00:07]} Nxf5 {[%emt 0:00:48]} 53. gxf5 {[%emt 0:00:05]} Rg2 {[%emt 0:00:41]} 54. Qe5+ {[%emt 0:00:15]} Kf8 {[%emt 0:00:27]} 1-0

[Event "Romanian Championship 2024"]
[Site "Eforie Nord"]
[Date "2024.03.02"]
[Round "9.23"]
[White "Mintau, Andrei-Catalin"]
[Black "Costescu, Mihnea-Constantin"]
[Result "1/2-1/2"]
[ECO "B50"]
[WhiteElo "2039"]
[BlackElo "1944"]
[Annotator "ChessBase"]
[PlyCount "105"]
[EventDate "2024.02.24"]
[EventType "swiss"]
[EventCountry "ROU"]
[SourceTitle "playchess.com"]
[Source "ChessBase"]
[SourceQuality "1"]
[TimeControl "40/5400+30:900+30"]

1. e4 {[%emt 0:08:42]} c5 {[%emt 0:00:25]} 2. Nf3 {[%emt 0:00:03]} d6 {[%emt 0:00:09]} 3. Nc3 {[%emt 0:00:02]} Nf6 {[%emt 0:00:12]} 4. e5 {[%emt 0:00:03]} dxe5 {[%emt 0:01:17]} 5. Nxe5 {[%emt 0:00:04]} e6 {[%emt 0:01:13]} 6. g3 {[%emt 0:00:49]} Bd6 {[%emt 0:01:11]} 7. Nc4 {[%emt 0:00:13]} O-O {[%emt 0:03:52]} 8. Bg2 {[%emt 0:02:55]} Nc6 {[%emt 0:05:09]} 9. d3 {[%emt 0:06:56]} Re8 {[%emt 0:05:25]} 10. Bg5 {[%emt 0:05:38]} Be7 {[%emt 0:01:37]} 11. O-O {[%emt 0:02:02]} Nd5 {[%emt 0:04:47]} 12. Bxe7 {[%emt 0:01:25]} Rxe7 {[%emt 0:06:23]} 13. Re1 {[%emt 0:19:09]} Rb8 {[%emt 0:11:51]} 14. Qh5 {[%emt 0:17:10]} Rd7 {[%emt 0:09:55]} 15. Ne5 {[%emt 0:03:05]} Nxe5 {[%emt 0:01:04]} 16. Qxe5 {[%emt 0:00:26]} Nc7 {[%emt 0:06:02]} 17. Qxc5 {[%emt 0:00:18]} b6 {[%emt 0:00:47]} 18. Qe3 {[%emt 0:02:36]} h6 {[%emt 0:04:41]} 19. Rad1 {[%emt 0:02:51]} Bb7 {[%emt 0:02:59]} 20. Bxb7 {[%emt 0:01:37]} Rxb7 {[%emt 0:00:04]} 21. d4 {[%emt 0:01:46]} b5 {[%emt 0:02:04]} 22. Ne4 {[%emt 0:04:49]} Rd5 {[%emt 0:06:54]} 23. Nc5 {[%emt 0:06:42]} Rb6 {[%emt 0:00:25]} 24. f4 {[%emt 0:00:15]} Rc6 {[%emt 0:02:10]} 25. Rd3 {[%emt 0:00:43]} Na6 {[%emt 0:01:57]} 26. Nxa6 {[%emt 0:00:38]} Rxa6 {[%emt 0:00:05]} 27. a3 {[%emt 0:00:37]} Rc6 {[%emt 0:00:27]} 28. Qd2 {[%emt 0:00:32]} Rcd6 {[%emt 0:01:37]} 29. c3 {[%emt 0:00:16]} a5 {[%emt 0:01:26]} 30. Rde3 {[%emt 0:00:24]} b4 {[%emt 0:02:46]} 31. Re5 {[%emt 0:02:59]} bxc3 {[%emt 0:00:37]} 32. bxc3 {[%emt 0:00:04]} Rb6 {[%emt 0:00:18]} 33. Qc2 {[%emt 0:03:04]} Rxe5 {[%emt 0:03:26]} 34. Rxe5 {[%emt 0:02:53]} Qb8 {[%emt 0:00:22]} 35. Re1 {[%emt 0:00:24]} Rb2 {[%emt 0:00:17]} 36. Qe4 {[%emt 0:00:03]} Qb3 {[%emt 0:01:26]} 37. f5 {[%emt 0:00:19]} exf5 {[%emt 0:05:47]} 38. Qxf5 {[%emt 0:00:22]} g6 {[%emt 0:00:06]} 39. Qf6 {[%emt 0:01:43]} Kh7 {[%emt 0:02:45]} 40. Rf1 {[%emt 0:00:00]} Kg8 {[%emt 0:00:00]} 41. Qf3 {[%emt 0:12:56]} Rd2 {[%emt 0:04:39]} 42. Qc6 {[%emt 0:01:22]} Rd1 {[%emt 0:04:03]} 43. Rxd1 {[%emt 0:01:52]} Qxd1+ {[%emt 0:00:14]} 44. Kf2 {[%emt 0:00:02]} Qd2+ {[%emt 0:08:35]} 45. Kf3 {[%emt 0:00:05]} Qd3+ {[%emt 0:00:33]} 46. Kf4 {[%emt 0:00:46]} Qd2+ {[%emt 0:00:31]} 47. Ke5 {[%emt 0:00:08]} Qxh2 {[%emt 0:02:49]} 48. Qf3 {[%emt 0:00:33]} Qb2 {[%emt 0:00:34]} 49. Qa8+ {[%emt 0:03:30]} Kg7 {[%emt 0:00:17]} 50. Qxa5 {[%emt 0:00:02]} Qb8+ {[%emt 0:00:07]} 51. Ke4 {[%emt 0:00:24]} Qb1+ {[%emt 0:01:27]} 52. Ke3 {[%emt 0:03:21]} Qe1+ {[%emt 0:00:29]} 53. Kf3 {[%emt 0:00:09]} 1/2-1/2